bitfinex/quotes_BTCUSD_20241028
["timestamp","ask_amount","ask_price","bid_price","bid_amount"]
[1730156021643,0.46313281,69870.0,69869.0,0.01451219]
[1730156021644,0.46478481,69870.0,69869.0,0.01451219]
[1730156021831,0.47478481,69870.0,69869.0,0.01551219]
[1730156022036,0.47478481,69870.0,69869.0,0.01351219]
[1730156022243,0.48278481,69870.0,69869.0,0.002]
[1730156025089,0.57518481,69870.0,69869.0,0.002]
[1730156025776,0.58018481,69870.0,69869.0,0.002]
[1730156034629,0.58018481,69870.0,69869.0,0.002825]
[1730156034630,1.4166231,69870.0,69869.0,0.002825]
[1730156034863,1.24883637,69870.0,69869.0,0.002825]
[1730156036430,1.35479575,69870.0,69869.0,0.002825]
[1730156036638,1.33358773,69870.0,69869.0,0.002825]
[1730156036853,1.24883637,69870.0,69869.0,0.002825]
[1730156037125,1.24883637,69870.0,69869.0,0.000825]
[1730156037126,0.81359362,69870.0,69869.0,0.000825]
[1730156037335,0.81359362,69870.0,69869.0,0.001825]
[1730156037336,0.62856251,69870.0,69869.0,0.001825]
[1730156037545,0.6497502,69870.0,69869.0,0.001825]
[1730156037755,0.6357502,69870.0,69869.0,0.000825]
[1730156037967,0.58618481,69870.0,69869.0,0.000825]
[1730156038197,0.6637502,69870.0,69869.0,0.000825]
[1730156038431,0.82742361,69870.0,69869.0,0.000825]
[1730156038644,0.66376788,69870.0,69869.0,0.000825]
[1730156038852,0.60018481,69870.0,69869.0,0.000825]
[1730156039063,0.64257518,69870.0,69869.0,0.000825]
[1730156039504,0.58618481,69870.0,69869.0,0.000825]
[1730156039928,0.60218481,69870.0,69869.0,0.001825]
[1730156040151,0.64455691,69870.0,69869.0,0.001825]
[1730156040369,0.64255691,69870.0,69869.0,0.001825]
[1730156041449,0.60018481,69870.0,69869.0,0.001825]
[1730156041826,0.64255691,69870.0,69869.0,0.001825]
[1730156042036,0.60018481,69870.0,69869.0,0.001825]
[1730156043056,0.64255854,69870.0,69869.0,0.001825]
[1730156043394,0.60018481,69870.0,69869.0,0.001825]
[1730156044721,0.59518481,69870.0,69869.0,0.001825]
[1730156045016,0.17298727,69870.0,69869.0,0.001825]
[1730156045260,0.17298727,69870.0,69869.0,0.130637]
[1730156045481,0.17298727,69870.0,69869.0,0.24420059]
[1730156045932,0.15898727,69870.0,69869.0,0.25685928]
[1730156046154,0.14498727,69870.0,69869.0,0.25585928]
[1730156046381,0.14998727,69870.0,69869.0,0.25685928]
[1730156046603,0.14498727,69870.0,69869.0,0.25585928]
[1730156046825,0.15970081,69870.0,69869.0,0.25585928]
[1730156047053,0.16570081,69870.0,69869.0,0.25238259]
[1730156047560,0.15970081,69870.0,69869.0,0.26592592]
[1730156047794,0.14498727,69870.0,69869.0,0.25138494]
[1730156048017,0.14598727,69870.0,69869.0,0.25586148]
[1730156048257,0.14598727,69870.0,69859.0,0.01454334]
[1730156048258,0.505,69860.0,69859.0,0.01454334]
[1730156048492,0.505,69860.0,69848.0,0.000826]
[1730156048493,0.156834,69857.0,69848.0,0.21459409]
[1730156048726,0.20490527,69860.0,69848.0,0.21459409]
[1730156048957,0.128833,69858.0,69849.0,0.128849]
[1730156049414,0.128833,69858.0,69848.0,0.129675]
[1730156049415,0.14333527,69857.0,69848.0,0.129675]
[1730156049643,0.14333527,69857.0,69849.0,0.128848]
[1730156050121,0.14333527,69857.0,69856.0,0.001826]
[1730156050356,0.27216927,69857.0,69856.0,0.001826]
[1730156050599,0.14333527,69857.0,69856.0,0.001826]
[1730156050842,0.1973176,69857.0,69856.0,0.001826]
[1730156051067,0.1973176,69857.0,69856.0,0.002826]
[1730156051521,0.3261516,69857.0,69856.0,0.002826]
[1730156051973,0.3261516,69857.0,69856.0,0.001826]
[1730156052195,0.3361516,69857.0,69856.0,0.00630367]
[1730156052414,0.3361516,69857.0,69856.0,0.001826]
[1730156052680,0.3461516,69857.0,69856.0,0.002826]
[1730156054293,0.3361516,69857.0,69856.0,0.001826]
[1730156054973,0.3261516,69857.0,69856.0,0.000826]
[1730156055247,0.3371516,69857.0,69856.0,0.001826]
[1730156055695,0.3481516,69857.0,69856.0,0.002826]
[1730156057034,0.51341195,69857.0,69856.0,0.002826]
[1730156057240,0.3481516,69857.0,69856.0,0.002826]
[1730156059949,0.51341195,69857.0,69856.0,0.002826]
[1730156076380,0.60491195,69857.0,69856.0,0.002826]
[1730156076613,0.62791195,69857.0,69856.0,0.002826]
[1730156076841,0.6915977,69857.0,69856.0,0.002826]
[1730156077159,0.86970714,69857.0,69856.0,0.002826]
[1730156077399,0.78479281,69857.0,69856.0,0.002826]
[1730156077628,0.62791195,69857.0,69856.0,0.002826]
[1730156077858,0.69157137,69857.0,69856.0,0.002826]
[1730156078361,0.62791195,69857.0,69856.0,0.002826]
[1730156078595,0.67035008,69857.0,69856.0,0.002826]
[1730156079033,0.62791195,69857.0,69856.0,0.002826]
[1730156079776,0.67035008,69857.0,69856.0,0.002826]
[1730156080694,0.62791195,69857.0,69856.0,0.002826]
[1730156084464,0.4626516,69857.0,69856.0,0.002826]
[1730156084809,0.62791195,69857.0,69856.0,0.002826]
[1730156087517,0.60491195,69857.0,69856.0,0.002826]
[1730156087754,0.3481516,69857.0,69856.0,0.002826]
[1730156089624,0.3481516,69857.0,69856.0,0.00730393]
[1730156089871,0.3481516,69857.0,69856.0,0.14518804]
[1730156089872,0.16533527,69857.0,69856.0,0.14518804]
[1730156090143,0.16533527,69857.0,69856.0,0.41638784]
[1730156090383,0.16533527,69857.0,69856.0,0.42534325]
[1730156090609,0.16533527,69857.0,69856.0,0.42086561]
[1730156090831,0.15433527,69857.0,69856.0,0.41986557]
[1730156091078,0.15433527,69857.0,69856.0,0.42986355]
[1730156091358,0.15933527,69857.0,69856.0,0.5951239]
[1730156091599,0.011,69857.0,69856.0,0.5951239]
[1730156092064,0.005,69857.0,69856.0,0.5941239]
[1730156092581,0.01,69857.0,69856.0,0.5941239]
[1730156092793,0.005,69857.0,69856.0,0.5941239]
[1730156093029,0.005,69857.0,69856.0,0.5981239]
[1730156093731,0.21542009,69866.0,69865.0,0.128819]
[1730156093959,0.35875536,69866.0,69865.0,0.14233316]
[1730156094408,0.14498727,69866.0,69865.0,0.14233316]
[1730156095095,0.15098727,69866.0,69865.0,0.14333316]
[1730156095359,0.15098727,69866.0,69865.0,0.14433316]
[1730156095597,0.15698727,69866.0,69865.0,0.14433316]
[1730156097917,0.15698727,69866.0,69865.0,0.14432452]
[1730156099731,0.1728512,69866.0,69865.0,0.01550542]
[1730156100186,0.1728512,69866.0,69865.0,0.00647684]
[1730156100451,0.51543729,69866.0,69865.0,0.002]
[1730156100668,0.3016692,69866.0,69865.0,0.002]
[1730156100873,0.28580527,69866.0,69865.0,0.002]
[1730156102023,0.30880527,69866.0,69865.0,0.002]
[1730156102247,0.48400527,69866.0,69865.0,0.002]
[1730156103205,0.46100527,69866.0,69865.0,0.002]
[1730156108441,0.48900527,69866.0,69865.0,0.002]
[1730156108682,0.63749914,69866.0,69865.0,0.002]
[1730156108902,0.7961431,69866.0,69865.0,0.002]
[1730156109112,0.7941431,69866.0,69865.0,0.002]
[1730156109601,0.7881431,69866.0,69865.0,0.001]
[1730156109818,0.151834,69857.0,69856.0,0.000826]
[1730156110061,0.29516927,69857.0,69856.0,0.000826]
[1730156110989,0.14333527,69857.0,69856.0,0.000826]
[1730156111201,0.15433527,69857.0,69856.0,0.130662]
[1730156111443,0.15433527,69857.0,69856.0,0.244169]
[1730156111659,0.16433527,69857.0,69856.0,0.36981695]
[1730156111880,0.16433527,69857.0,69856.0,0.37249139]
[1730156112103,0.021,69857.0,69856.0,0.37249139]
[1730156112319,0.021,69857.0,69856.0,0.3774905]
[1730156112320,0.011,69857.0,69856.0,0.3774905]
[1730156112755,0.012,69857.0,69856.0,0.3774905]
[1730156112968,0.21376809,69865.0,69856.0,0.2476545]
[1730156113228,0.21376809,69865.0,69864.0,0.228821]
[1730156113455,0.21376809,69865.0,69864.0,0.25677422]
[1730156113681,0.001652,69866.0,69865.0,0.228819]
[1730156113919,0.001652,69866.0,69865.0,0.25677222]
[1730156114158,0.001652,69866.0,69865.0,0.26644461]
[1730156114394,0.001652,69866.0,69865.0,0.2519975]
[1730156114617,0.001652,69866.0,69865.0,0.0231785]
[1730156114857,0.002652,69866.0,69865.0,0.0231785]
[1730156115310,0.002652,69866.0,69865.0,0.2519975]
[1730156115311,0.14598727,69866.0,69865.0,0.2519975]
[1730156116009,0.14598727,69866.0,69865.0,0.25199733]
[1730156116226,0.14898727,69866.0,69865.0,0.25199733]
[1730156116435,0.14498727,69866.0,69865.0,0.25199733]
[1730156116668,0.1596512,69866.0,69865.0,0.25199733]
[1730156116877,0.1606512,69866.0,69865.0,0.25199733]
[1730156117117,0.1626512,69866.0,69865.0,0.25199733]
[1730156117342,0.14798727,69866.0,69865.0,0.25199733]
[1730156117555,0.14598727,69866.0,69865.0,0.17303634]
[1730156117778,0.14598727,69866.0,69865.0,0.17386234]
[1730156118007,0.14498727,69866.0,69865.0,0.17686234]
[1730156118224,0.14498727,69866.0,69865.0,0.19531378]
[1730156118449,0.1596512,69866.0,69865.0,0.19531461]
[1730156118682,0.14498727,69866.0,69865.0,0.52957496]
[1730156118915,0.14598727,69866.0,69865.0,0.52957496]
[1730156119130,0.14598727,69866.0,69865.0,0.34686234]
[1730156119347,0.14598727,69866.0,69865.0,0.36131608]
[1730156119578,0.14798727,69866.0,69865.0,0.35086234]
[1730156119834,0.14798727,69866.0,69865.0,0.36531604]
[1730156120051,0.14598727,69866.0,69865.0,0.36531604]
[1730156120531,0.1607512,69866.0,69865.0,0.36831604]
[1730156120951,0.1597512,69866.0,69865.0,0.36431604]
[1730156121379,0.1597512,69866.0,69865.0,0.32886234]
[1730156121592,0.001652,69866.0,69865.0,0.23466234]
[1730156121797,0.14498727,69866.0,69865.0,0.23466234]
[1730156122008,0.14498727,69866.0,69865.0,0.23866234]
[1730156122901,0.14498727,69866.0,69865.0,0.25311521]
[1730156125418,0.1596512,69866.0,69865.0,0.25311521]
[1730156125650,0.1596512,69866.0,69865.0,0.35311521]
[1730156125872,0.1596512,69866.0,69865.0,0.27031521]
[1730156127503,0.1596512,69866.0,69865.0,0.27031126]
[1730156127954,0.14498727,69866.0,69865.0,0.27031126]
[1730156137698,0.14498727,69866.0,69865.0,0.27531126]
[1730156137699,0.001652,69866.0,69865.0,0.27531126]
[1730156137932,0.001652,69866.0,69865.0,0.33281842]
[1730156138174,0.001652,69866.0,69865.0,0.4242564]
[1730156138860,0.001652,69866.0,69865.0,0.4452141]
[1730156139094,0.002652,69866.0,69865.0,0.444738]
[1730156139327,0.003652,69866.0,69865.0,0.449738]
[1730156139807,0.003652,69866.0,69865.0,0.267838]
[1730156142138,0.14698727,69866.0,69865.0,0.267838]
[1730156146607,0.14698727,69866.0,69865.0,0.26787808]
[1730156147077,0.14698727,69866.0,69865.0,0.26787798]
[1730156154719,0.14698727,69866.0,69865.0,0.26788822]
[1730156157637,0.14698727,69866.0,69865.0,0.16788822]
[1730156158496,0.14698727,69866.0,69865.0,0.1678899]
[1730156158732,0.14698727,69866.0,69865.0,0.2678899]
[1730156161428,0.14698727,69866.0,69865.0,0.26788924]
[1730156164984,0.14698727,69866.0,69865.0,0.2443564]
[1730156165248,0.14698727,69866.0,69865.0,0.26788538]
[1730156165483,0.003652,69866.0,69865.0,0.28522746]
[1730156165708,0.003652,69866.0,69865.0,0.37754922]
[1730156166394,0.003652,69866.0,69865.0,0.40539363]
[1730156166635,0.003652,69866.0,69865.0,0.36246496]
[1730156166866,0.14698727,69866.0,69865.0,0.28236496]
[1730156167085,0.14698727,69866.0,69865.0,0.39086682]
[1730156169177,0.003652,69866.0,69865.0,0.39086682]
[1730156170547,0.003652,69866.0,69865.0,0.40594976]
[1730156170772,0.003652,69866.0,69865.0,0.39086682]
[1730156171440,0.003652,69866.0,69865.0,0.37638725]
[1730156172911,0.003652,69866.0,69865.0,0.36190785]
[1730156173147,0.003652,69866.0,69865.0,0.37638772]
[1730156176467,0.003652,69866.0,69865.0,0.35285826]
[1730156176705,0.003652,69866.0,69865.0,0.37638739]
[1730156177398,0.14698727,69866.0,69865.0,0.26788553]
[1730156177861,0.1618512,69866.0,69865.0,0.26788553]
[1730156178620,0.14698727,69866.0,69865.0,0.26788553]
[1730156179095,0.003652,69866.0,69865.0,0.37638739]
[1730156179329,0.003652,69866.0,69865.0,0.35285826]
[1730156180784,0.003652,69866.0,69865.0,0.37638606]
[1730156181264,0.001652,69870.0,69869.0,0.228812]
[1730156181503,0.14498727,69870.0,69869.0,0.2523398]
[1730156181730,0.14498727,69870.0,69869.0,0.27043841]
[1730156182666,0.14498727,69870.0,69869.0,0.27443841]
[1730156183636,0.14498727,69870.0,69869.0,0.59252563]
[1730156183637,0.001652,69870.0,69869.0,0.59252563]
[1730156183873,0.001652,69870.0,69869.0,0.58044213]
[1730156184100,0.001652,69870.0,69869.0,0.64484536]
[1730156184336,0.001652,69870.0,69869.0,0.51485817]
[1730156184567,0.001652,69870.0,69869.0,0.46694027]
[1730156184797,0.002652,69870.0,69869.0,0.47694027]
[1730156185030,0.002652,69870.0,69869.0,0.43585958]
[1730156185259,0.002652,69870.0,69869.0,0.38894027]
[1730156185485,0.003652,69870.0,69869.0,0.41801445]
[1730156185710,0.003652,69870.0,69869.0,0.40294027]
[1730156186027,0.002652,69870.0,69869.0,0.38894027]
[1730156186273,0.002652,69870.0,69869.0,0.50244213]
[1730156186531,0.003652,69870.0,69869.0,0.69804213]
[1730156187963,0.003652,69870.0,69869.0,0.70804213]
[1730156188423,0.00165,69876.0,69875.0,0.015]
[1730156188673,0.00165,69876.0,69875.0,0.39392927]
[1730156189820,0.00265,69876.0,69875.0,0.40392927]
[1730156190070,0.00265,69876.0,69875.0,0.40192927]
[1730156190306,0.00365,69876.0,69875.0,0.41092927]
[1730156190761,0.00365,69876.0,69875.0,0.49162927]
[1730156192497,0.00365,69876.0,69875.0,0.49152765]
[1730156193075,0.00365,69876.0,69875.0,0.50055047]
[1730156193307,0.00365,69876.0,69875.0,0.49152098]
[1730156194766,0.00365,69876.0,69875.0,0.32328385]
[1730156194899,0.00365,69876.0,69875.0,0.43178571]
[1730156195921,0.00365,69876.0,69875.0,0.44682514]
[1730156196135,0.001652,69880.0,69879.0,0.243794]
[1730156196349,0.001652,69880.0,69879.0,0.38764044]
[1730156196696,0.001652,69880.0,69879.0,0.38380135]
[1730156196905,0.001652,69880.0,69879.0,0.39380135]
[1730156197352,0.001652,69880.0,69879.0,0.38880135]
[1730156197552,0.001652,69880.0,69879.0,0.39880135]
[1730156197767,0.001652,69880.0,69879.0,0.40380135]
[1730156198205,0.001652,69880.0,69879.0,0.64559178]
[1730156198414,0.001652,69889.0,69888.0,0.56928258]
[1730156198639,0.001652,69889.0,69888.0,0.59621761]
[1730156198847,0.001652,69889.0,69888.0,0.58318621]
[1730156199052,0.001652,69889.0,69888.0,0.68616051]
[1730156200195,0.001652,69889.0,69888.0,0.686121]
[1730156200431,0.000825,69891.0,69889.0,0.145775]
[1730156200656,1e-06,69891.0,69890.0,0.37487407]
[1730156200855,1e-06,69891.0,69890.0,0.37201328]
[1730156201743,0.001001,69891.0,69890.0,0.38501328]
[1730156201986,0.001001,69891.0,69890.0,0.39901328]
[1730156202427,1e-06,69891.0,69890.0,0.38601328]
[1730156202705,1e-06,69891.0,69890.0,0.38301328]
[1730156202916,1e-06,69891.0,69890.0,0.29968402]
[1730156203146,1e-06,69891.0,69890.0,0.32081802]
[1730156203377,1e-06,69891.0,69890.0,0.30681802]
[1730156203578,1e-06,69891.0,69890.0,0.32281802]
[1730156203791,1e-06,69891.0,69890.0,0.30932989]
[1730156204023,0.000811,69904.0,69903.0,0.133749]
[1730156204224,0.000811,69904.0,69903.0,0.40171311]
[1730156204448,0.000811,69904.0,69903.0,0.40785281]
[1730156204648,0.000811,69904.0,69903.0,0.41232645]
[1730156205078,0.000811,69904.0,69903.0,0.42032645]
[1730156205284,0.001811,69904.0,69903.0,0.42832645]
[1730156206134,0.001811,69904.0,69903.0,0.44272775]
[1730156206596,0.001811,69904.0,69903.0,0.42832645]
[1730156206828,0.001811,69904.0,69903.0,0.44272775]
[1730156207041,0.000811,69904.0,69903.0,0.43472775]
[1730156207714,0.001811,69904.0,69903.0,0.41585232]
[1730156207940,0.001811,69904.0,69903.0,0.43923308]
[1730156208169,0.001811,69904.0,69903.0,0.43470654]
[1730156208170,0.000811,69904.0,69903.0,0.43470654]
[1730156208384,0.001811,69904.0,69903.0,0.44270654]
[1730156208827,0.001811,69904.0,69903.0,0.43470654]
[1730156208828,0.000811,69904.0,69903.0,0.43470654]
[1730156209281,0.000811,69904.0,69903.0,0.42031818]
[1730156209511,0.000811,69904.0,69903.0,0.24721486]
[1730156209955,0.000811,69904.0,69903.0,0.25221486]
[1730156210199,0.081011,69904.0,69903.0,0.24221486]
[1730156210650,0.082011,69904.0,69903.0,0.28419766]
[1730156210881,0.082011,69904.0,69903.0,0.27219766]
[1730156211116,0.082011,69904.0,69903.0,0.28219766]
[1730156211349,0.081011,69904.0,69903.0,0.27319766]
[1730156211577,0.082011,69904.0,69903.0,0.2587318]
[1730156212006,0.081011,69904.0,69903.0,0.2497318]
[1730156212419,0.082011,69904.0,69903.0,0.2587318]
[1730156212869,0.082011,69904.0,69903.0,0.2687318]
[1730156213118,0.082011,69904.0,69903.0,0.26320599]
[1730156213326,0.082011,69904.0,69903.0,0.27320599]
[1730156213542,0.24294737,69904.0,69903.0,0.27320599]
[1730156215020,0.24294737,69904.0,69903.0,0.02347419]
[1730156215248,0.24294737,69904.0,69903.0,0.147749]
[1730156215249,0.33574737,69904.0,69903.0,0.147749]
[1730156215696,0.33574737,69904.0,69903.0,0.019]
[1730156216153,0.33574737,69904.0,69903.0,0.009]
[1730156216404,0.31814627,69904.0,69903.0,0.009]
[1730156216634,0.32014627,69904.0,69901.0,0.128752]
[1730156216914,0.128752,69902.0,69890.0,0.257546]
[1730156217125,0.36013543,69901.0,69898.0,0.128758]
[1730156217994,0.36013543,69901.0,69889.0,0.1]
[1730156218192,0.36013543,69901.0,69900.0,0.128755]
[1730156219073,0.36013543,69901.0,69898.0,0.128757]
[1730156219333,0.0754,69898.0,69897.0,0.12876]
[1730156219544,0.26697401,69898.0,69897.0,0.12876]
[1730156219999,0.1662,69897.0,69891.0,0.00165]
[1730156220247,0.60340859,69892.0,69891.0,0.00165]
[1730156220723,0.62640859,69892.0,69891.0,0.00165]
[1730156220943,0.76800695,69892.0,69891.0,0.00165]
[1730156221404,0.77300695,69892.0,69891.0,0.00165]
[1730156221879,0.77300695,69892.0,69891.0,0.00265]
[1730156222108,0.78200695,69892.0,69891.0,0.00265]
[1730156222340,0.78700695,69892.0,69891.0,0.00365]
[1730156222563,0.79200695,69892.0,69891.0,0.00265]
[1730156223019,0.79700695,69892.0,69891.0,0.00365]
[1730156223325,0.78800695,69892.0,69891.0,0.00265]
[1730156223550,0.80100695,69892.0,69891.0,0.00365]
[1730156223777,0.80300695,69892.0,69891.0,0.00365]
[1730156224956,0.80383195,69892.0,69891.0,0.00365]
[1730156226166,0.80183195,69892.0,69891.0,0.00365]
[1730156228010,0.62672863,69892.0,69891.0,0.00365]
[1730156228244,0.63172863,69892.0,69891.0,0.00365]
[1730156228497,0.62672863,69892.0,69891.0,0.00365]
[1730156228726,0.50295863,69892.0,69891.0,0.00365]
[1730156229202,0.48513027,69892.0,69891.0,0.00365]
[1730156229639,0.48013027,69892.0,69891.0,0.00365]
[1730156229875,0.48513027,69892.0,69891.0,0.00365]
[1730156230567,0.35636027,69892.0,69891.0,0.00365]
[1730156230796,0.33336027,69892.0,69891.0,0.132421]
[1730156231075,0.3795726,69892.0,69891.0,0.132421]
[1730156231761,0.3795726,69892.0,69891.0,0.00365]
[1730156231984,0.3745726,69892.0,69891.0,0.132421]
[1730156232249,0.3795726,69892.0,69891.0,0.132421]
[1730156232979,0.16216027,69892.0,69891.0,0.132421]
[1730156233235,0.16216027,69892.0,69891.0,0.232421]
[1730156234124,0.16216027,69892.0,69891.0,0.31988231]
[1730156234125,0.005825,69892.0,69891.0,0.31988231]
[1730156234366,0.005825,69892.0,69891.0,0.317021]
[1730156234607,0.005825,69892.0,69891.0,0.33048146]
[1730156234894,0.005825,69892.0,69891.0,0.32948146]
[1730156234895,0.000825,69892.0,69891.0,0.32948146]
[1730156235120,0.005825,69892.0,69891.0,0.33048146]
[1730156235359,0.005825,69892.0,69891.0,0.32948146]
[1730156235574,0.012825,69892.0,69891.0,0.32548146]
[1730156235800,0.015825,69892.0,69891.0,0.32548146]
[1730156236040,0.008825,69892.0,69891.0,0.32448146]
[1730156236267,0.011825,69892.0,69891.0,0.32448146]
[1730156236726,0.008825,69892.0,69891.0,0.32948146]
[1730156237405,0.008825,69892.0,69891.0,0.34533176]
[1730156237845,0.000825,69892.0,69891.0,0.26873176]
[1730156238299,0.000825,69892.0,69891.0,0.27373176]
[1730156238536,0.14416027,69892.0,69891.0,0.27373176]
[1730156238987,0.1663463,69892.0,69891.0,0.27373176]
[1730156239443,0.14416027,69892.0,69891.0,0.2692569]
[1730156243802,0.14416027,69892.0,69891.0,0.26928358]
[1730156244061,0.14416027,69892.0,69891.0,0.26928362]
[1730156244979,0.14416027,69892.0,69891.0,0.2602713]
[1730156245254,0.14416027,69892.0,69891.0,0.239421]
[1730156245255,0.22526027,69892.0,69891.0,0.239421]
[1730156245447,0.2477863,69892.0,69891.0,0.234421]
[1730156245673,0.2477863,69892.0,69891.0,0.230421]
[1730156245916,0.2477863,69892.0,69891.0,0.239421]
[1730156246396,0.2477863,69892.0,69891.0,0.235421]
[1730156246876,0.22826027,69892.0,69891.0,0.235421]
[1730156247118,0.14716027,69892.0,69891.0,0.230421]
[1730156247346,0.000825,69892.0,69891.0,0.23943579]
[1730156247590,0.004825,69892.0,69891.0,0.24229621]
[1730156248514,0.005825,69892.0,69891.0,0.24229621]
[1730156249199,0.004825,69892.0,69891.0,0.24229621]
[1730156249416,0.004825,69892.0,69891.0,0.24729621]
[1730156250330,0.000825,69892.0,69891.0,0.24729621]
[1730156250558,0.000825,69892.0,69891.0,0.25229621]
[1730156251447,0.000825,69892.0,69891.0,0.24328229]
[1730156251716,0.000825,69892.0,69891.0,0.25229476]
[1730156253305,0.000825,69892.0,69891.0,0.24443347]
[1730156253772,0.001825,69892.0,69891.0,0.24943347]
[1730156253993,0.001825,69892.0,69891.0,0.26129476]
[1730156254946,0.000825,69892.0,69891.0,0.25129476]
[1730156255393,0.000825,69892.0,69891.0,0.25129786]
[1730156255627,0.000825,69892.0,69891.0,0.24228229]
[1730156255852,0.000825,69892.0,69891.0,0.26572884]
[1730156256318,0.14416027,69892.0,69891.0,0.2564387]
[1730156256542,0.1758963,69892.0,69891.0,0.147421]
[1730156256770,0.14416027,69892.0,69891.0,0.147421]
[1730156257447,0.14416027,69892.0,69891.0,0.14744457]
[1730156257902,0.000825,69892.0,69891.0,0.13944457]
[1730156258159,0.000825,69892.0,69891.0,0.23944457]
[1730156258384,0.000825,69892.0,69891.0,0.24044457]
[1730156258831,0.000825,69892.0,69891.0,0.25387342]
[1730156259054,0.000825,69892.0,69891.0,0.230421]
[1730156259309,0.001825,69892.0,69891.0,0.24644755]
[1730156259551,0.000825,69892.0,69891.0,0.25389056]
[1730156260017,0.001825,69892.0,69891.0,0.36075185]
[1730156260246,0.001825,69892.0,69891.0,0.35789056]
[1730156260728,0.001825,69892.0,69891.0,0.38089056]
[1730156261192,0.001825,69892.0,69891.0,0.46149056]
[1730156261684,0.001825,69892.0,69891.0,0.46349056]
[1730156262484,0.001825,69892.0,69891.0,0.46149056]
[1730156263193,0.001825,69892.0,69891.0,0.26889056]
[1730156263404,0.14516027,69892.0,69891.0,0.16889056]
[1730156263619,0.1596763,69892.0,69891.0,0.16889056]
[1730156264197,0.14416027,69892.0,69891.0,0.16189056]
[1730156264420,0.14416027,69892.0,69891.0,0.15389056]
[1730156264631,0.14516027,69892.0,69891.0,0.16089056]
[1730156264855,0.14516027,69892.0,69891.0,0.26889056]
[1730156265071,0.14416027,69892.0,69891.0,0.25389056]
[1730156265301,0.4855463,69892.0,69891.0,0.01067655]
[1730156265520,0.4855463,69892.0,69891.0,0.00665]
[1730156265994,0.4855463,69892.0,69891.0,0.00365]
[1730156267104,0.4855463,69892.0,69891.0,0.00165]
[1730156267321,0.4855463,69892.0,69891.0,0.00365]
[1730156267560,0.4855463,69892.0,69891.0,0.00265]
[1730156267998,0.3607763,69892.0,69891.0,0.00265]
[1730156268215,0.3697763,69892.0,69891.0,0.00365]
[1730156268431,0.4985463,69892.0,69891.0,0.00365]
[1730156269109,0.33236027,69892.0,69891.0,0.00365]
[1730156269330,0.33236027,69892.0,69891.0,0.132421]
[1730156272806,0.33236027,69892.0,69891.0,0.00365]
[1730156274375,0.33236027,69892.0,69891.0,0.132421]
[1730156279612,0.33236027,69892.0,69891.0,0.00365]
[1730156279828,0.52488756,69892.0,69891.0,0.00365]
[1730156280036,0.39611756,69892.0,69891.0,0.00365]
[1730156280489,0.39611756,69892.0,69891.0,0.132421]
[1730156281625,0.15716027,69892.0,69891.0,0.132421]
[1730156282952,0.15716027,69892.0,69891.0,0.232421]
[1730156283935,0.15716027,69892.0,69891.0,0.24143429]
[1730156285074,0.013825,69892.0,69891.0,0.24143429]
[1730156285535,0.013825,69892.0,69891.0,0.24143462]
[1730156285763,0.013825,69892.0,69891.0,0.24043462]
[1730156285989,0.000825,69892.0,69891.0,0.23943462]
[1730156286252,0.000825,69892.0,69891.0,0.26171822]
[1730156286493,0.000825,69892.0,69891.0,0.26671822]
[1730156286736,0.000825,69892.0,69891.0,0.26171822]
[1730156287182,0.001825,69892.0,69891.0,0.26971822]
[1730156287397,0.001825,69892.0,69891.0,0.26471822]
[1730156287837,0.001825,69892.0,69891.0,0.27371822]
[1730156288286,0.001825,69892.0,69891.0,0.27085693]
[1730156288730,0.001825,69892.0,69891.0,0.25643426]
[1730156289201,0.14516027,69892.0,69891.0,0.25643426]
[1730156291440,0.1596763,69892.0,69891.0,0.25643426]
[1730156292842,0.14516027,69892.0,69891.0,0.25643426]
[1730156293088,0.001825,69892.0,69891.0,0.25643426]
[1730156293295,0.001825,69892.0,69891.0,0.25929555]
[1730156293747,0.001825,69892.0,69891.0,0.25643426]
[1730156293956,0.001825,69892.0,69891.0,0.25929555]
[1730156294875,0.001825,69892.0,69891.0,0.25643426]
[1730156295337,0.001825,69892.0,69891.0,0.34433426]
[1730156295576,0.001825,69892.0,69891.0,0.43493426]
[1730156296502,0.001825,69892.0,69891.0,0.43494168]
[1730156299758,0.000636,69904.0,69903.0,0.228749]
[1730156299996,0.14397127,69904.0,69903.0,0.23776968]
[1730156300241,0.14397127,69904.0,69903.0,0.23776624]
[1730156300947,0.14697127,69904.0,69903.0,0.23776624]
[1730156301644,0.14997127,69904.0,69903.0,0.23776624]
[1730156302321,0.14697127,69904.0,69903.0,0.23776624]
[1730156302787,0.14697127,69904.0,69903.0,0.23876624]
[1730156303033,0.1616684,69904.0,69903.0,0.23876624]
[1730156303252,0.14697127,69904.0,69903.0,0.23776624]
[1730156303475,0.14397127,69904.0,69903.0,0.23776624]
[1730156303921,0.14397127,69904.0,69903.0,0.24276782]
[1730156304609,0.14397127,69904.0,69903.0,0.24776782]
[1730156305963,0.1583684,69904.0,69903.0,0.24776782]
[1730156306429,0.1583684,69904.0,69903.0,0.2691222]
[1730156307831,0.1583684,69904.0,69903.0,0.26912558]
[1730156309723,0.14397127,69904.0,69903.0,0.26912558]
[1730156314992,0.14397127,69904.0,69903.0,0.26010338]
[1730156315215,0.14397127,69904.0,69903.0,0.26913013]
[1730156315431,0.14397127,69904.0,69903.0,0.26010338]
[1730156315675,0.14397127,69904.0,69903.0,0.26913024]
[1730156315933,0.1583684,69904.0,69903.0,0.26913024]
[1730156316592,0.1583684,69904.0,69903.0,0.26913035]
[1730156316827,0.14397127,69904.0,69903.0,0.26913035]
[1730156320691,0.14397127,69904.0,69903.0,0.26808835]
[1730156324036,0.31327127,69904.0,69903.0,0.01902697]
[1730156324265,0.31327127,69904.0,69903.0,0.138749]
[1730156324788,0.14397127,69904.0,69903.0,0.138749]
[1730156325019,0.14397127,69904.0,69903.0,0.1427842]
[1730156325481,0.14397127,69904.0,69903.0,0.1477842]
[1730156326166,0.14397127,69904.0,69903.0,0.1427842]
[1730156326415,0.14497127,69904.0,69903.0,0.14278611]
[1730156326626,0.14397127,69904.0,69903.0,0.13778606]
[1730156326857,0.1664684,69904.0,69903.0,0.13778606]
[1730156327093,0.1664684,69904.0,69903.0,0.14778606]
[1730156328492,0.1664684,69904.0,69903.0,0.14943606]
[1730156329162,0.14397127,69904.0,69903.0,0.14943606]
[1730156330088,0.14397127,69904.0,69903.0,0.35784104]
[1730156330783,0.14397127,69904.0,69903.0,0.24943606]
[1730156331005,0.14397127,69904.0,69903.0,0.27079316]
[1730156332814,0.000636,69904.0,69903.0,0.27079316]